bitfinex/quotes_BTCUSD_20220304
["timestamp","ask_amount","ask_price","bid_price","bid_amount"]
[1646404310234,0.28916,41355.0,41351.0,0.37103683]
[1646404310433,0.249666,41355.0,41351.0,0.37103683]
[1646404310632,0.05,41355.0,41352.0,0.25035307]
[1646404310881,0.003,41359.0,41351.0,0.37103683]
[1646404311081,0.003,41359.0,41351.0,0.38412231]
[1646404311288,0.175,41366.0,41363.0,0.03465816]
[1646404311482,0.175,41366.0,41351.0,0.37103683]
[1646404311483,0.26644301,41353.0,41351.0,0.37103683]
[1646404311678,0.13916,41352.0,41351.0,0.37103683]
[1646404312780,0.199677,41352.0,41351.0,0.37103683]
[1646404313178,0.199677,41352.0,41351.0,0.3711295]
[1646404313179,0.249677,41352.0,41351.0,0.3711295]
[1646404313577,0.110517,41352.0,41351.0,0.3711295]
[1646404313778,0.05,41352.0,41351.0,0.3711295]
[1646404314178,0.12101035,41356.0,41352.0,0.01151686]
[1646404314381,0.13916,41361.0,41353.0,0.27941035]
[1646404314626,0.004,41356.0,41351.0,0.3711295]
[1646404314928,0.30318815,41355.0,41351.0,0.3711295]
[1646404315325,0.44234815,41355.0,41351.0,0.3711295]
[1646404315530,0.30318815,41355.0,41351.0,0.3711295]
[1646404315730,0.30318815,41355.0,41351.0,0.3709495]
[1646404315731,0.58916,41352.0,41351.0,0.3709495]
[1646404315929,0.13916,41352.0,41351.0,0.3709495]
[1646404316228,0.23916,41352.0,41351.0,0.3709495]
[1646404316427,0.68916,41352.0,41351.0,0.3709495]
[1646404316630,0.84670769,41352.0,41351.0,0.3709495]
[1646404316926,0.68916,41352.0,41351.0,0.3709495]
[1646404317325,0.060519,41348.0,41329.0,1.4]
[1646404317527,0.13916,41342.0,41334.0,0.01034886]
[1646404317726,0.1,41347.0,41334.0,0.01034886]
[1646404318125,0.13916,41345.0,41334.0,0.01034886]
[1646404318394,0.13916,41352.0,41340.0,0.23059391]
[1646404318588,0.002,41351.0,41339.0,0.01320836]
[1646404319193,0.002,41351.0,41338.0,0.24910375]
[1646404319496,0.002,41351.0,41335.0,0.26741031]
[1646404319497,0.20978485,41343.0,41335.0,0.26741031]
[1646404319690,0.13916,41343.0,41335.0,0.26741031]
[1646404319989,0.06052336,41344.0,41335.0,0.26741031]
[1646404320189,0.06052336,41344.0,41334.0,0.20098548]
[1646404320390,0.06052336,41344.0,41331.0,0.01182884]
[1646404320593,0.360518,41346.0,41334.0,0.002]
[1646404320793,0.122039,41349.0,41334.0,0.002]
[1646404320794,0.001,41349.0,41340.0,0.32802594]
[1646404320993,0.05,41355.0,41349.0,0.002]
[1646404321193,0.2,41368.0,41349.0,0.002]
[1646404321194,0.13916,41365.0,41350.0,0.01027511]
[1646404321390,0.13916,41365.0,41352.0,0.19657715]
[1646404321590,0.02646924,41369.0,41353.0,0.3]
[1646404321795,0.23549542,41360.0,41353.0,0.3]
[1646404321991,0.23549542,41360.0,41352.0,0.19657715]
[1646404321992,0.23549542,41360.0,41349.0,0.002]
[1646404322237,0.23549542,41360.0,41353.0,0.21815132]
[1646404322437,0.23549542,41360.0,41354.0,0.01061208]
[1646404322637,0.23549542,41360.0,41352.0,0.001]
[1646404322838,0.12099746,41360.0,41352.0,0.001]
[1646404323239,0.002,41366.0,41352.0,0.001]
[1646404323639,0.20653099,41366.0,41352.0,0.001]
[1646404323842,0.28565982,41357.0,41350.0,0.01330756]
[1646404324040,0.13916,41357.0,41349.0,0.002]
[1646404324239,0.121019,41356.0,41349.0,0.002]
[1646404324446,0.13916,41367.0,41350.0,0.01548851]
[1646404324639,0.02646924,41369.0,41350.0,0.01548851]
[1646404324640,0.05069924,41369.0,41350.0,0.01548851]
[1646404324840,0.05069924,41369.0,41350.0,0.08366015]
[1646404325140,0.3178404,41366.0,41357.0,0.24056975]
[1646404325341,0.060488,41367.0,41357.0,0.24056975]
[1646404325542,0.02646924,41369.0,41358.0,0.01168281]
[1646404325741,0.02646924,41369.0,41358.0,0.3]
[1646404325742,0.14744924,41369.0,41358.0,0.3]
[1646404325976,0.14744924,41369.0,41353.0,0.3]
[1646404325977,0.22646924,41369.0,41353.0,0.3]
[1646404326179,0.22646924,41369.0,41358.0,0.01499621]
[1646404326377,0.28695656,41369.0,41359.0,0.21372589]
[1646404326576,0.060496,41365.0,41359.0,0.21372589]
[1646404326777,0.060496,41365.0,41354.0,0.1]
[1646404326978,0.30006761,41363.0,41354.0,0.1]
[1646404327376,0.30006761,41363.0,41352.0,0.01773249]
[1646404327580,0.13916,41357.0,41352.0,0.002]
[1646404327779,0.3,41362.0,41349.0,0.002]
[1646404327780,0.16634291,41362.0,41349.0,0.002]
[1646404327978,0.1,41362.0,41349.0,0.002]
[1646404328176,0.1,41362.0,41349.0,0.21401701]
[1646404328376,0.25659748,41352.0,41349.0,0.002]
[1646404328581,0.44575748,41352.0,41349.0,0.002]
[1646404328777,0.36710648,41352.0,41349.0,0.002]
[1646404329080,0.02423,41361.0,41349.0,0.002]
[1646404329081,0.13916,41361.0,41350.0,0.01104649]
[1646404329278,0.13916,41361.0,41350.0,0.03527649]
[1646404329481,0.13916,41361.0,41350.0,0.01104649]
[1646404329734,0.05,41363.0,41361.0,0.27832]
[1646404329929,0.25370462,41362.0,41361.0,0.27832]
[1646404330530,0.55370462,41362.0,41361.0,0.27832]
[1646404330728,0.61420262,41362.0,41361.0,0.27832]
[1646404331129,0.41420262,41362.0,41361.0,0.27832]
[1646404331329,0.160498,41362.0,41361.0,0.27832]
[1646404331729,0.053,41363.0,41361.0,0.2778793]
[1646404331730,0.05,41363.0,41361.0,0.2778793]
[1646404332327,0.3151711,41362.0,41361.0,0.2778793]
[1646404332529,0.060489,41366.0,41361.0,0.2778793]
[1646404332733,0.22946924,41369.0,41362.0,0.01208398]
[1646404333030,0.22946924,41369.0,41362.0,8.18e-05]
[1646404333031,0.23791704,41366.0,41362.0,8.18e-05]
[1646404333230,0.2,41366.0,41362.0,8.18e-05]
[1646404333890,0.31423774,41363.0,41362.0,8.18e-05]
[1646404337636,0.26693657,41368.0,41362.0,0.3000818]
[1646404337637,0.004,41368.0,41362.0,0.3000818]
[1646404337840,0.22646924,41369.0,41363.0,0.40882222]
[1646404338034,0.22646924,41369.0,41363.0,0.45882222]
[1646404338235,0.22646924,41369.0,41364.0,0.1]
[1646404338434,0.22646924,41369.0,41365.0,0.3]
[1646404338635,0.22646924,41369.0,41363.0,0.28064987]
[1646404338835,0.22646924,41369.0,41363.0,0.05]
[1646404339234,0.22646924,41369.0,41362.0,0.01104886]
[1646404339634,0.22646924,41369.0,41366.0,0.31102167]
[1646404339838,0.22646924,41369.0,41367.0,0.01482033]
[1646404340234,0.22646924,41369.0,41368.0,0.27310105]
[1646404340881,0.22646924,41369.0,41368.0,0.05]
[1646404341081,0.22646924,41369.0,41367.0,0.01482033]
[1646404341284,0.0641605,41378.0,41367.0,0.01482033]
[1646404341483,0.5,41381.0,41367.0,0.01482033]
[1646404341685,0.45,41381.0,41370.0,0.060475]
[1646404341882,0.45,41381.0,41371.0,0.21760952]
[1646404342084,0.060472,41380.0,41372.0,0.01434262]
[1646404342486,0.060472,41380.0,41373.0,0.28786446]
[1646404342884,0.26378632,41381.0,41374.0,0.060466]
[1646404343084,0.001,41382.0,41374.0,0.060466]
[1646404343291,0.001,41382.0,41380.0,0.01294822]
[1646404343885,0.0011,41386.0,41380.0,0.01294822]
[1646404344389,0.060467,41382.0,41370.0,0.01104804]
[1646404344630,0.3,41381.0,41370.0,0.01104804]
[1646404344829,0.45,41383.0,41370.0,0.07153004]
[1646404345035,0.27561993,41376.0,41374.0,0.25682943]
[1646404345231,0.06047003,41382.0,41375.0,0.01244331]
[1646404345430,0.06047003,41382.0,41375.0,0.07291131]
[1646404345431,0.060469,41381.0,41375.0,0.07291131]
[1646404345830,0.060469,41381.0,41375.0,0.12291131]
[1646404346032,0.220941,41385.0,41375.0,0.12291131]
[1646404346229,0.0261,41386.0,41375.0,0.12291131]
[1646404346230,0.0011,41386.0,41379.0,0.25398714]
[1646404346432,0.0011,41386.0,41380.0,0.01539953]
[1646404346637,0.0011,41386.0,41380.0,0.31539953]
[1646404346638,0.001,41385.0,41380.0,0.31539953]
[1646404346833,0.001,41385.0,41381.0,0.17650455]
[1646404347031,0.001,41385.0,41382.0,0.44695355]
[1646404347229,0.001,41385.0,41383.0,0.4]
[1646404347431,0.001,41385.0,41384.0,0.3]
[1646404347637,0.001,41385.0,41384.0,1.07492]
[1646404347834,0.05,41390.0,41384.0,1.07492]
[1646404347835,0.051,41398.0,41385.0,1.401]
[1646404348035,0.0476,41398.0,41386.0,0.3]
[1646404348386,0.001,41398.0,41393.0,0.060443]
[1646404348586,0.2,41395.0,41384.0,0.906223]
[1646404348787,0.2,41392.0,41384.0,0.72492]
[1646404348985,0.25,41389.0,41382.0,0.006]
[1646404349184,0.151,41398.0,41387.0,0.26505006]
[1646404349185,0.26272367,41394.0,41387.0,0.26505006]
[1646404349388,0.2,41397.0,41382.0,0.066465]
[1646404349584,0.24572126,41394.0,41387.0,0.25622223]
[1646404349784,0.24572126,41394.0,41377.0,0.21222132]
[1646404349986,0.06318823,41392.0,41377.0,0.15]
[1646404350189,0.06318823,41392.0,41377.0,0.05]
[1646404350486,0.06318823,41392.0,41379.0,0.170914]
[1646404350686,0.06318823,41392.0,41380.0,0.19226121]
[1646404350988,0.05046173,41388.0,41379.0,0.170914]
[1646404351187,0.25,41395.0,41382.0,0.060456]
[1646404351188,0.05,41395.0,41382.0,0.060456]
[1646404351386,0.451,41398.0,41382.0,0.060456]
[1646404351890,0.060451,41393.0,41386.0,0.17179787]
[1646404352138,0.001,41398.0,41393.0,0.060442]
[1646404352534,0.001,41398.0,41386.0,0.28224187]
[1646404352742,0.24385247,41394.0,41386.0,0.05]
[1646404352937,0.24385247,41394.0,41385.0,0.005]
[1646404353135,0.27694748,41390.0,41385.0,0.065453]
[1646404353335,0.27694748,41390.0,41385.0,0.005]
[1646404353734,0.24385247,41394.0,41385.0,0.005]
[1646404353936,0.24385247,41394.0,41382.0,0.46766622]
[1646404354136,0.060459,41389.0,41384.0,0.05]
[1646404354336,0.060459,41389.0,41382.0,0.170906]
[1646404354736,0.060459,41389.0,41385.0,0.21575081]
[1646404354936,0.060459,41389.0,41382.0,0.170906]
[1646404355137,0.060459,41389.0,41384.0,0.31872998]
[1646404355343,0.2,41395.0,41384.0,0.31872998]
[1646404355344,0.060446,41397.0,41384.0,0.37917598]
[1646404355542,0.120913,41393.0,41382.0,0.05]
[1646404355739,0.120913,41393.0,41378.0,0.05008362]
[1646404356176,0.25,41397.0,41389.0,0.38068908]
[1646404356377,0.25,41397.0,41389.0,0.05]
[1646404356378,0.27121611,41393.0,41389.0,0.05]
[1646404356875,0.001,41398.0,41385.0,0.30962156]
[1646404357479,0.2579562,41391.0,41385.0,0.170889]
[1646404357678,0.2579562,41391.0,41384.0,0.05]
[1646404357880,0.2579562,41391.0,41380.0,0.01266033]
[1646404357881,0.370912,41394.0,41380.0,0.06266033]
[1646404358077,0.3445,41393.0,41378.0,8.362e-05]
[1646404358277,0.45,41390.0,41383.0,8.376e-05]
[1646404358478,0.47412858,41389.0,41383.0,8.376e-05]
[1646404358680,0.120932,41388.0,41383.0,8.376e-05]
[1646404358878,0.120932,41388.0,41373.0,0.5]
[1646404358879,0.25,41384.0,41373.0,0.5]
[1646404359081,0.245932,41388.0,41373.0,0.5]
[1646404359082,0.45,41375.0,41373.0,0.5]
[1646404359279,0.1445,41374.0,41362.0,0.5]
[1646404359477,0.7386,41370.0,41362.0,0.5]
[1646404359739,0.7386,41370.0,41361.0,0.3383683]
[1646404359740,0.2,41364.0,41361.0,0.2778793]
[1646404359938,0.33180326,41363.0,41361.0,0.2778793]
[1646404360135,0.65,41362.0,41349.0,0.002]
[1646404360336,0.060513,41358.0,41349.0,0.002]
[1646404360542,0.4945,41357.0,41349.0,0.002]
[1646404360741,0.25,41352.0,41349.0,0.002]
[1646404360943,0.2,41350.0,41349.0,0.002]
[1646404361136,0.2445,41350.0,41349.0,0.002]
[1646404361336,0.3945,41350.0,41349.0,0.002]
[1646404361539,0.0945,41350.0,41349.0,0.002]
[1646404361744,0.10503108,41350.0,41349.0,0.002]
[1646404361936,0.0445,41350.0,41349.0,0.002]
[1646404362137,0.0945,41350.0,41349.0,0.002]
[1646404362438,0.0445,41350.0,41339.0,0.121027]
[1646404362738,0.0445,41350.0,41331.0,0.01387668]
[1646404362739,0.45,41340.0,41331.0,0.01387668]
[1646404362942,0.45,41340.0,41326.0,0.01175839]
[1646404362943,0.25,41337.0,41326.0,0.01175839]
[1646404363148,0.2,41329.0,41327.0,0.72584]
[1646404363392,0.32900197,41334.0,41330.0,0.46573735]
[1646404363687,0.2,41336.0,41330.0,0.46573735]
[1646404363688,0.45,41331.0,41330.0,0.46573735]
[1646404363887,0.0445,41331.0,41330.0,0.46573735]
[1646404364489,0.05,41348.0,41331.0,0.0445]
[1646404364490,0.0445,41341.0,41331.0,0.0445]
[1646404364687,0.2,41346.0,41334.0,0.060518]
[1646404364688,0.001,41335.0,41334.0,0.060518]
[1646404364887,0.001,41335.0,41334.0,0.21869742]
[1646404365089,0.001,41335.0,41333.0,0.121035]
[1646404365288,0.001,41335.0,41330.0,0.46573735]
[1646404365489,0.001,41335.0,41330.0,0.51573735]
[1646404365887,0.060539,41334.0,41330.0,0.46573735]
[1646404366090,0.2,41333.0,41330.0,0.46573735]
[1646404366288,0.8140994,41332.0,41330.0,0.46573735]
[1646404366492,2.1831,41331.0,41327.0,0.19309797]
[1646404366795,0.2,41322.0,41321.0,0.01]
[1646404366993,0.355077,41322.0,41321.0,0.01]
[1646404367234,0.105077,41322.0,41321.0,0.01]
[1646404367433,0.0445,41322.0,41321.0,0.01]
[1646404367832,0.45,41339.0,41321.0,0.36]
[1646404368136,0.060539,41336.0,41323.0,0.121068]
[1646404368335,0.496,41342.0,41324.0,0.3]
[1646404368336,0.0445,41338.0,41324.0,0.3]
[1646404368547,0.0445,41337.0,41324.0,0.35]
[1646404368732,0.0445,41336.0,41333.0,0.00675768]
[1646404369232,0.25,41335.0,41333.0,0.00675768]
[1646404369532,0.0445,41334.0,41333.0,0.00675768]
[1646404369730,0.2845,41334.0,41333.0,0.00675768]
[1646404369933,1.35,41333.0,41312.0,0.3]
[1646404370133,1.35,41333.0,41306.0,0.8082]
[1646404370134,0.0445,41332.0,41307.0,0.3]
[1646404370332,0.25,41327.0,41313.0,0.23082173]
[1646404370530,0.060554,41325.0,41314.0,0.3]
[1646404370882,0.35576445,41324.0,41314.0,0.6057916]
[1646404371082,0.35576445,41324.0,41314.0,0.3057916]
[1646404371281,0.35576445,41324.0,41315.0,0.060554]
[1646404371478,0.11973084,41326.0,41314.0,0.3057916]
[1646404371777,0.0445,41325.0,41316.0,0.24616746]
[1646404372077,0.105054,41325.0,41317.0,0.21749642]
[1646404372278,0.105054,41325.0,41317.0,0.26749642]
[1646404372680,0.105054,41325.0,41317.0,0.05]
[1646404372983,0.45,41322.0,41311.0,0.3]
[1646404373180,0.81497361,41322.0,41311.0,0.3]
[1646404373484,0.2945,41322.0,41311.0,0.3]
[1646404373683,0.0945,41322.0,41311.0,0.3]
[1646404374081,0.0445,41322.0,41320.0,0.2592277]
[1646404374289,0.00217848,41325.0,41321.0,0.675331]
[1646404374482,0.00217848,41325.0,41323.0,0.28210593]
[1646404374740,0.00217848,41325.0,41322.0,0.72599]
[1646404375342,0.06273635,41325.0,41322.0,0.72599]
[1646404375542,0.0445,41324.0,41322.0,0.72599]
[1646404375740,0.24963391,41323.0,41322.0,0.72599]
[1646404375942,0.0445,41323.0,41322.0,0.72599]
[1646404376143,0.1445,41323.0,41322.0,0.72599]
[1646404376340,0.0445,41323.0,41322.0,0.72599]
[1646404376942,0.0445,41323.0,41305.0,0.01150642]
[1646404376943,1.3,41322.0,41305.0,0.01150642]
[1646404377145,0.24963391,41302.0,41300.0,0.2001]
[1646404377342,0.0445,41301.0,41300.0,0.2001]
[1646404377739,0.105093,41301.0,41300.0,0.2001]
[1646404377940,0.36036226,41301.0,41300.0,0.2001]
[1646404378383,0.9,41300.0,41291.0,0.02278038]
[1646404378688,0.260604,41296.0,41291.0,0.01]
[1646404378881,0.0445,41295.0,41291.0,0.01]
[1646404379083,0.0445,41295.0,41293.0,0.21266487]
[1646404379482,0.0445,41295.0,41293.0,0.28374231]
[1646404379686,0.0445,41295.0,41294.0,0.01275931]
[1646404379881,0.6206681,41308.0,41297.0,0.270812]
[1646404379882,0.3,41307.0,41297.0,0.270812]
[1646404380085,0.0445,41298.0,41297.0,0.270812]
[1646404380685,0.0445,41298.0,41297.0,0.33351121]
[1646404380885,0.003,41301.0,41297.0,0.33351121]
[1646404381086,0.003,41301.0,41297.0,0.43351121]
[1646404381289,0.003,41301.0,41298.0,1.0011808]
[1646404381485,0.0445,41306.0,41299.0,0.35529419]
[1646404381686,0.25105499,41323.0,41300.0,0.72635]
[1646404381687,0.0445,41318.0,41300.0,0.72635]
[1646404381886,0.24950942,41316.0,41300.0,0.72635]
[1646404382135,0.2,41313.0,41300.0,0.77635]
[1646404382333,0.0445,41312.0,41300.0,0.77635]
[1646404382532,0.30105572,41311.0,41300.0,0.77635]
[1646404382730,0.060577,41308.0,41305.0,0.16641189]
[1646404383130,0.10506736,41310.0,41305.0,0.16641189]
[1646404383331,0.2,41321.0,41311.0,0.31013471]
[1646404383534,0.0445,41316.0,41311.0,0.31013471]
[1646404383732,0.0445,41316.0,41312.0,0.30837708]
[1646404383938,0.06055981,41315.0,41311.0,0.31013471]
[1646404384134,0.121139,41314.0,41311.0,0.31013471]
[1646404385030,0.06055981,41315.0,41311.0,0.31013471]
[1646404385230,0.05,41314.0,41311.0,0.31013471]
[1646404385432,0.31568975,41314.0,41311.0,0.31013471]
[1646404385635,0.37625675,41314.0,41311.0,0.31013471]
[1646404385878,0.0445,41313.0,41311.0,0.31013471]
[1646404389087,0.0445,41313.0,41311.0,0.52615268]
[1646404389281,0.0445,41313.0,41311.0,0.31013471]
[1646404389482,0.04753332,41313.0,41311.0,0.31013471]
[1646404389735,0.00303332,41313.0,41312.0,0.30018326]
[1646404390337,0.20303332,41313.0,41311.0,0.31013471]
[1646404390537,0.20303332,41313.0,41297.0,0.270812]
[1646404390538,1.15,41312.0,41297.0,0.270812]
[1646404390738,0.50303332,41313.0,41298.0,0.01502928]
[1646404390739,0.060582,41308.0,41298.0,0.01502928]
[1646404390941,0.51009142,41308.0,41298.0,0.01502928]
[1646404391137,0.2,41306.0,41298.0,0.01502928]
[1646404391337,0.27396205,41305.0,41298.0,0.01502928]
[1646404391537,0.27396205,41305.0,41297.0,0.270812]
[1646404391538,0.24950942,41300.0,41297.0,0.270812]
[1646404391741,0.2,41298.0,41297.0,0.270812]
[1646404391937,0.66294089,41298.0,41297.0,0.270812]
[1646404392137,0.060594,41299.0,41297.0,0.270812]
[1646404394684,0.44069077,41298.0,41297.0,0.270812]
[1646404394881,0.060599,41296.0,41291.0,0.01]
[1646404395082,0.44950942,41292.0,41291.0,0.01]
[1646404395282,0.121209,41293.0,41291.0,0.01]
[1646404395580,0.44950942,41292.0,41291.0,0.01]
[1646404395981,0.121209,41293.0,41291.0,0.01]
[1646404396180,0.38950942,41292.0,41284.0,0.01272952]
[1646404396484,0.38950942,41292.0,41277.0,0.01588083]
[1646404396485,0.26062353,41288.0,41277.0,0.01588083]
[1646404396682,0.321252,41286.0,41277.0,0.01588083]
[1646404397135,0.0445,41285.0,41277.0,0.01588083]
[1646404397337,0.29301509,41283.0,41277.0,0.01588083]
[1646404397636,0.29301509,41283.0,41267.0,0.583181]
[1646404397637,0.44950942,41279.0,41268.0,0.01404581]
[1646404397837,0.12126485,41277.0,41268.0,0.01404581]
[1646404398237,0.0445,41282.0,41268.0,0.01404581]
[1646404398238,0.2,41288.0,41271.0,0.15]
[1646404398437,0.105105,41287.0,41276.0,0.121205]
[1646404398635,0.0445,41287.0,41282.0,0.25797225]
[1646404398937,0.0445,41287.0,41277.0,0.46247719]
[1646404399236,0.0445,41287.0,41274.0,0.01585575]
[1646404399237,0.33191019,41287.0,41274.0,0.01585575]
[1646404399835,0.33191019,41287.0,41280.0,0.22874148]
[1646404400035,0.33191019,41287.0,41281.0,0.01351741]
[1646404400036,0.12122674,41282.0,41281.0,0.01351741]
[1646404400537,0.060609,41283.0,41276.0,0.06061]
[1646404400737,0.2,41284.0,41277.0,0.01033047]
[1646404400986,0.30669507,41282.0,41273.0,0.29489414]
[1646404401390,0.60248042,41284.0,41273.0,0.29489414]
[1646404401589,0.060617,41281.0,41273.0,0.29489414]
[1646404402190,0.18184521,41281.0,41273.0,0.29489414]
[1646404402390,0.21298127,41295.0,41273.0,0.29489414]
[1646404402391,0.1,41291.0,41276.0,1.81359729]
[1646404402591,0.00615687,41292.0,41281.0,0.060594]
[1646404402792,0.00615687,41292.0,41279.0,0.15]
[1646404402793,0.00615687,41292.0,41282.0,0.3]
[1646404402989,0.00615687,41292.0,41284.0,0.01386568]
[1646404403188,0.00615687,41292.0,41285.0,0.27805729]
[1646404403390,0.05,41295.0,41292.0,1.61298976]
[1646404403591,0.24950942,41308.0,41292.0,1.61298976]
[1646404403592,0.05,41308.0,41293.0,1.09805675]
[1646404403790,0.02423,41314.0,41294.0,0.15]
[1646404403989,0.24950942,41314.0,41293.0,1.18747675]
[1646404404189,0.06056842,41309.0,41294.0,0.15]
[1646404404390,0.06056842,41309.0,41299.0,0.27063484]
[1646404404654,0.06056842,41309.0,41303.0,0.25498164]
[1646404404850,0.06056842,41309.0,41303.0,0.36556064]
[1646404405250,0.12116,41308.0,41303.0,0.06002267]
[1646404405452,0.12116,41308.0,41303.0,0.01002267]
[1646404405751,0.12114242,41309.0,41303.0,0.01002267]
[1646404405950,0.12115223,41308.0,41303.0,0.01002267]
[1646404406149,0.12115223,41308.0,41303.0,0.27718495]
[1646404406349,0.12115223,41308.0,41303.0,0.01002267]
[1646404406553,0.29102127,41307.0,41303.0,0.01002267]
[1646404406755,0.54950942,41306.0,41302.0,0.021148]
[1646404406954,0.06057867,41304.0,41293.0,0.72652]
[1646404407158,0.0445,41305.0,41288.0,0.060606]
[1646404407159,0.83071951,41298.0,41288.0,0.060606]
[1646404407357,0.24950942,41283.0,41277.0,0.5]
[1646404407656,0.24950942,41283.0,41267.0,0.013181]
[1646404407657,0.31012742,41282.0,41278.0,0.01406091]
[1646404407852,0.0445,41281.0,41278.0,0.01406091]
[1646404408254,0.0445,41281.0,41278.0,0.07467791]
[1646404408494,0.1,41292.0,41282.0,0.18239057]
[1646404408495,0.0445,41290.0,41282.0,0.18239057]
[1646404408687,0.002,41286.0,41282.0,0.28666902]
[1646404409090,0.002,41286.0,41284.0,0.01130486]
[1646404409491,0.002,41286.0,41284.0,0.07191086]
[1646404409693,0.002,41286.0,41285.0,0.16820685]
[1646404409892,0.30654082,41294.0,41284.0,0.12191086]
[1646404410090,0.25654082,41294.0,41284.0,0.12191086]
[1646404410293,0.06059988,41287.0,41284.0,0.01130486]
[1646404410589,0.3101093,41287.0,41284.0,0.01130486]
[1646404410789,0.3601093,41287.0,41284.0,0.01130486]
[1646404410991,0.47120488,41287.0,41284.0,0.01130486]
[1646404411194,0.24950942,41285.0,41272.0,0.23811797]
[1646404411493,0.0606294,41281.0,41273.0,0.01297058]
[1646404411692,0.24950942,41277.0,41273.0,0.01297058]
[1646404411892,0.0445,41276.0,41273.0,0.01297058]
[1646404412344,0.0445,41276.0,41265.0,0.060625]
[1646404412643,0.0445,41276.0,41262.0,0.0101543]
[1646404412644,0.15,41273.0,41262.0,0.0101543]
[1646404412836,1.4,41275.0,41262.0,0.0101543]
[1646404412837,0.0445,41272.0,41262.0,0.0101543]
[1646404413036,0.24450942,41269.0,41262.0,0.0101543]
[1646404413234,0.20532462,41273.0,41262.0,0.0101543]
[1646404413235,0.060647,41267.0,41262.0,0.0101543]
[1646404413436,0.0445,41266.0,41262.0,0.0101543]
[1646404413836,0.0445,41266.0,41262.0,0.0707923]
[1646404414236,0.0445,41266.0,41264.0,0.121277]
[1646404414636,0.21268474,41265.0,41264.0,0.121277]
[1646404414836,0.21268474,41265.0,41262.0,0.0101543]
[1646404414837,0.28900942,41265.0,41262.0,0.0101543]
[1646404415044,0.4709629,41265.0,41262.0,0.0101543]
[1646404415342,0.26851599,41253.0,41243.0,0.02967]
[1646404415544,1.4,41263.0,41248.0,0.060661]
[1646404415545,0.426499,41251.0,41248.0,0.060661]
[1646404415739,0.24450942,41250.0,41248.0,0.060661]
[1646404415997,0.18198958,41251.0,41248.0,0.060661]
[1646404416196,0.18198958,41251.0,41245.0,0.01544128]
[1646404416403,0.24450942,41249.0,41243.0,0.02967]
[1646404416598,0.49440942,41247.0,41244.0,0.01360773]
[1646404416796,0.165857,41246.0,41244.0,0.01360773]
[1646404417199,0.54450942,41245.0,41232.0,0.242653]
[1646404417397,0.54450942,41245.0,41228.0,0.50006]
[1646404417398,0.24450942,41237.0,41228.0,0.50006]
[1646404417601,0.24450942,41237.0,41218.0,0.42]
[1646404417602,1.4,41235.0,41218.0,0.42]
[1646404417799,0.64970117,41236.0,41215.0,0.4097]
[1646404417800,0.24450942,41220.0,41215.0,0.4097]
[1646404418000,0.01512658,41233.0,41225.0,0.03962658]
[1646404418001,0.7386,41226.0,41225.0,0.03962658]
[1646404418196,0.7386,41224.0,41202.0,0.42]
[1646404418396,0.24450942,41217.0,41205.0,0.01378027]
[1646404418597,0.06072,41213.0,41205.0,0.01378027]
[1646404418797,0.0445,41212.0,41205.0,0.13520927]
[1646404419098,0.0445,41211.0,41205.0,0.28520927]
[1646404419299,0.05,41214.0,41212.0,0.1335]
[1646404419637,0.05,41224.0,41212.0,0.1335]
[1646404419638,0.0445,41213.0,41212.0,0.1335]
[1646404420039,0.11070195,41224.0,41212.0,0.21961564]
[1646404420040,0.05,41224.0,41212.0,0.21961564]
[1646404420249,0.0445,41226.0,41223.0,0.33761174]
[1646404420439,0.171387,41234.0,41223.0,0.32691374]
[1646404420440,0.0445,41231.0,41223.0,0.32691374]
[1646404420639,0.0445,41231.0,41223.0,0.05]
[1646404420840,0.0445,41231.0,41220.0,0.121395]
[1646404421038,0.0445,41231.0,41214.0,0.3]
[1646404421039,0.24450942,41226.0,41214.0,0.3]
[1646404421238,0.121416,41224.0,41213.0,0.3]
[1646404421439,0.0445,41223.0,41219.0,0.19128409]
[1646404421639,0.0445,41223.0,41220.0,0.54864838]
[1646404421840,0.0445,41223.0,41220.0,0.51840985]
[1646404422037,0.0445,41223.0,41220.0,0.50754668]
[1646404422240,0.0445,41223.0,41220.0,0.55754668]
[1646404422441,0.05,41234.0,41233.0,0.15543711]
[1646404422642,0.24450942,41247.0,41227.0,0.060669]
[1646404422843,0.24450942,41247.0,41228.0,0.15]
[1646404423038,0.24450942,41247.0,41225.0,0.06280284]
[1646404423039,0.54450942,41247.0,41229.0,0.121339]
[1646404423240,0.54450942,41247.0,41227.0,0.05]
[1646404423241,0.24957067,41240.0,41227.0,0.05]
[1646404423511,0.24957067,41240.0,41224.0,0.05]
[1646404423512,0.0445,41239.0,41224.0,0.05]
[1646404423710,0.0445,41239.0,41227.0,0.06069]
[1646404423908,0.0445,41239.0,41233.0,0.25554785]
[1646404424109,0.16586198,41239.0,41229.0,0.12136]
[1646404424308,0.0445,41239.0,41230.0,0.05]
[1646404424510,0.0945,41239.0,41230.0,0.05]
[1646404424708,0.0945,41239.0,41235.0,0.25788219]
[1646404425107,0.0945,41239.0,41235.0,0.30788219]
[1646404425307,0.0945,41239.0,41235.0,0.05]
[1646404425708,0.0945,41239.0,41231.0,0.171359]
[1646404426307,0.33518938,41239.0,41231.0,0.05]
[1646404426509,0.0606834,41236.0,41227.0,0.060689]
[1646404426909,0.05,41239.0,41228.0,0.3]
[1646404427139,0.05,41237.0,41231.0,0.121353]
[1646404427337,0.05,41239.0,41231.0,0.195583]
[1646404427542,0.003,41241.0,41232.0,0.360676]
[1646404427738,0.003,41241.0,41239.0,0.26393491]
[1646404427937,0.003,41241.0,41240.0,0.28682466]
[1646404428145,0.28144676,41252.0,41240.0,0.28682466]
[1646404428146,0.05,41248.0,41240.0,0.86809691]
[1646404428341,0.001,41255.0,41240.0,0.96809691]
[1646404428539,0.001,41255.0,41244.0,0.060648]
[1646404428742,0.001,41255.0,41245.0,0.3]